fUSD/lending_fUSD_20241207
["ID","MTS","AMOUNT","RATE_DAILY","PERIOD"]
[344523833,1733535422349,500.0,8.493e-05,2]
[344523834,1733535422606,500.0,8.767e-05,2]
[344523835,1733535422908,500.0,9.041e-05,2]
[344523836,1733535422958,500.0,9.862e-05,2]
[344523838,1733535423511,500.0,9.315e-05,2]
[344523839,1733535423625,500.0,9.589e-05,2]
[344523840,1733535423732,500.0,9.863e-05,2]
[344523841,1733535426019,991.04,9.588e-05,2]
[344523842,1733535426282,991.04,9.862e-05,2]
[344523843,1733535427480,500.0,8.219e-05,2]
[344523844,1733535427782,500.0,8.493e-05,2]
[344523845,1733535428072,500.03728135,8.767e-05,2]
[344523846,1733535428628,500.0,8.219e-05,2]
[344523847,1733535428885,500.0,8.493e-05,2]
[344523848,1733535429155,500.0,8.767e-05,2]
[344523849,1733535429411,500.0,9.041e-05,2]
[344523850,1733535429628,5184.9,9.588e-05,2]
[344523851,1733535429685,500.0,9.315e-05,2]
[344523852,1733535429905,5184.9,9.862e-05,2]
[344523853,1733535429953,500.0,9.589e-05,2]
[344523854,1733535430214,500.0,9.863e-05,2]
[344523855,1733535430923,692.9,8.219e-05,2]
[344523856,1733535431183,692.9,8.493e-05,2]
[344523857,1733535431455,692.9,8.767e-05,2]
[344523858,1733535431726,692.9,9.041e-05,2]
[344523859,1733535432014,692.9,9.315e-05,2]
[344523860,1733535432122,9881.29883813,7.698e-05,2]
[344523861,1733535432303,692.9,9.589e-05,2]
[344523862,1733535432422,9881.29883813,7.689e-05,2]
[344523863,1733535432557,692.9,9.863e-05,2]
[344523864,1733535432696,9881.29883813,7.683e-05,2]
[344523865,1733535432985,9881.29883813,7.698e-05,2]
[344523866,1733535433271,9881.29883813,7.684e-05,2]
[344523867,1733535434394,9881.29883813,7.691e-05,2]
[344523868,1733535434923,500.0,8.219e-05,2]
[344523869,1733535438956,4214.37,9.588e-05,2]
[344523870,1733535439251,4214.37,9.862e-05,2]
[344523871,1733535439339,1500.0,9.64e-05,2]
[344523872,1733535439891,500.0,8.493e-05,2]
[344523873,1733535440225,500.0,8.767e-05,2]
[344523874,1733535440283,1316.86,8.219e-05,2]
[344523875,1733535440516,500.0,9.041e-05,2]
[344523876,1733535440559,1316.86,8.493e-05,2]
[344523877,1733535440656,732.98022822,7.689e-05,2]
[344523878,1733535440784,500.0,9.315e-05,2]
[344523879,1733535440827,1316.86,8.767e-05,2]
[344523880,1733535440931,732.98022822,7.692e-05,2]
[344523881,1733535441044,500.0,9.589e-05,2]
[344523882,1733535441087,1316.86,9.041e-05,2]
[344523883,1733535441218,732.98022822,7.688e-05,2]
[344523884,1733535441321,500.0,9.863e-05,2]
[344523885,1733535441362,1316.86,9.315e-05,2]
[344523886,1733535441505,732.98022822,7.678e-05,2]
[344523887,1733535441627,1316.86,9.589e-05,2]
[344523888,1733535441760,732.98022822,7.677e-05,2]
[344523889,1733535441898,1316.86,9.863e-05,2]
[344523890,1733535442116,732.98022822,7.684e-05,2]
[344523891,1733535447484,500.0,8.219e-05,2]
[344523892,1733535447772,500.0,8.493e-05,2]
[344523893,1733535448058,500.0,8.767e-05,2]
[344523894,1733535448318,369.75674329,9.041e-05,2]
[344523895,1733535448677,751.61233763,7.695e-05,2]
[344523896,1733535448966,751.61233763,7.678e-05,2]
[344523897,1733535449247,751.61233763,7.698e-05,2]
[344523898,1733535449396,945.34,8.219e-05,2]
[344523899,1733535449518,751.61233763,7.698e-05,2]
[344523900,1733535449686,945.34,8.493e-05,2]
[344523901,1733535449824,751.61233763,7.678e-05,2]
[344523902,1733535449929,945.34,8.767e-05,2]
[344523903,1733535450099,751.61233763,7.686e-05,2]
[344523904,1733535450281,945.34,9.041e-05,2]
[344523905,1733535450843,945.34,9.315e-05,2]
[344523906,1733535450928,500.0,8.219e-05,2]
[344523907,1733535451091,945.34,9.589e-05,2]
[344523908,1733535451150,500.0,8.493e-05,2]
[344523909,1733535451313,945.34,9.863e-05,2]
[344523910,1733535451378,500.0,8.767e-05,2]
[344523911,1733535451483,621.21132582,9.041e-05,2]
[344523912,1733535453207,1231.64162428,9.935e-05,2]
[344523913,1733535457102,250.0,9.573e-05,2]
[344523914,1733535458163,500.0,8.219e-05,2]
[344523915,1733535458509,500.0,8.493e-05,2]
[344523916,1733535458783,500.0,8.767e-05,2]
[344523917,1733535459070,500.0,9.041e-05,2]
[344523918,1733535459127,1231.64162427,9.986e-05,2]
[344523919,1733535459349,500.0,9.315e-05,2]
[344523920,1733535459637,560.54,9.588e-05,2]
[344523921,1733535459695,500.0,9.589e-05,2]
[344523922,1733535460105,560.54,9.862e-05,2]
[344523923,1733535460175,500.0,9.863e-05,2]
[344523924,1733535460707,461.68737647,7.698e-05,2]
[344523925,1733535460979,461.68737647,7.678e-05,2]
[344523926,1733535461624,461.68737647,7.694e-05,2]
[344523927,1733535461894,461.68737647,7.69e-05,2]
[344523928,1733535462178,461.68737647,7.693e-05,2]
[344523929,1733535462441,461.68737647,7.688e-05,2]
[344523930,1733535465917,500.0,8.219e-05,2]
[344523931,1733535466195,500.0,8.493e-05,2]
[344523932,1733535466474,508.08455674,8.767e-05,2]
[344523933,1733535466905,1044.64897328,9.935e-05,2]
[344523934,1733535467459,865.87,8.219e-05,2]
[344523935,1733535467750,865.87,8.493e-05,2]
[344523936,1733535468025,865.87,8.767e-05,2]
[344523937,1733535468303,865.87,9.041e-05,2]
[344523938,1733535468582,865.87,9.315e-05,2]
[344523939,1733535468855,500.0,9.588e-05,2]
[344523940,1733535468905,865.87,9.589e-05,2]
[344523941,1733535469111,500.0,9.862e-05,2]
[344523942,1733535469163,865.87,9.863e-05,2]
[344523943,1733535470838,500.0,8.219e-05,2]
[344523944,1733535471106,500.0,8.493e-05,2]
[344523945,1733535471434,500.0,8.767e-05,2]
[344523946,1733535471693,500.0,9.041e-05,2]
[344523947,1733535471975,300.0,9.54e-05,2]
[344523948,1733535472093,986.27,9.588e-05,2]
[344523949,1733535472153,500.0,9.315e-05,2]
[344523950,1733535472348,986.27,9.862e-05,2]
[344523951,1733535472684,500.0,9.589e-05,2]
[344523952,1733535472950,648.8706155,9.863e-05,2]
[344523953,1733535476841,500.0,8.219e-05,2]
[344523954,1733535477110,500.0,8.493e-05,2]
[344523955,1733535477395,500.0,8.767e-05,2]
[344523956,1733535477696,500.0,9.041e-05,2]
[344523957,1733535478104,500.0,9.315e-05,2]
[344523958,1733535478358,500.0,9.589e-05,2]
[344523959,1733535478645,500.0,9.863e-05,2]
[344523960,1733535485660,500.0,8.219e-05,2]
[344523961,1733535485783,2197.67,8.219e-05,2]
[344523962,1733535485919,500.0,8.493e-05,2]
[344523963,1733535486044,2197.67,8.493e-05,2]
[344523964,1733535486648,2197.67,8.767e-05,2]
[344523965,1733535486700,500.0,8.767e-05,2]
[344523966,1733535486785,2197.67,9.041e-05,2]
[344523967,1733535486843,503.78887628,9.041e-05,2]
[344523968,1733535487134,2197.67,9.315e-05,2]
[344523969,1733535487249,7410.9741286,7.69e-05,2]
[344523970,1733535487508,2197.67,9.589e-05,2]
[344523971,1733535487615,7410.9741286,7.677e-05,2]
[344523972,1733535487780,2197.67,9.863e-05,2]
[344523973,1733535487884,7410.9741286,7.697e-05,2]
[344523974,1733535488148,7410.9741286,7.689e-05,2]
[344523975,1733535488414,7410.9741286,7.68e-05,2]
[344523976,1733535488682,7410.9741286,7.693e-05,2]
[344523977,1733535494147,662.91,9.588e-05,2]
[344523978,1733535494535,662.91,9.862e-05,2]
[344523979,1733535495682,549.73517116,7.687e-05,2]
[344523980,1733535495768,500.0,8.219e-05,2]
[344523981,1733535495950,549.73517116,7.691e-05,2]
[344523982,1733535496546,500.0,8.493e-05,2]
[344523983,1733535496612,166.99,9.791e-05,2]
[344523984,1733535497157,549.73517116,7.685e-05,2]
[344523985,1733535497216,500.0,8.767e-05,2]
[344523986,1733535497296,549.73517116,7.688e-05,2]
[344523987,1733535497358,500.0,9.041e-05,2]
[344523988,1733535497459,549.73517116,7.682e-05,2]
[344523989,1733535497562,500.0,9.315e-05,2]
[344523990,1733535497669,549.73517116,7.688e-05,2]
[344523991,1733535497725,500.0,9.589e-05,2]
[344523992,1733535497835,415.37099115,9.863e-05,2]
[344523993,1733535503855,563.70925322,7.679e-05,2]
[344523994,1733535504138,563.70925322,7.683e-05,2]
[344523995,1733535504430,563.70925322,7.681e-05,2]
[344523996,1733535504741,563.70925322,7.699e-05,2]
[344523997,1733535505021,563.70925322,7.688e-05,2]
[344523998,1733535505308,563.70925322,7.689e-05,2]
[344523999,1733535505643,1705.69,8.219e-05,2]
[344524000,1733535505895,1705.69,8.493e-05,2]
[344524001,1733535506160,1705.69,8.767e-05,2]
[344524002,1733535506506,1705.69,9.041e-05,2]
[344524003,1733535506767,1705.69,9.315e-05,2]
[344524004,1733535507023,1705.69,9.589e-05,2]
[344524005,1733535507905,1705.69,9.863e-05,2]
[344524006,1733535511620,656.4,9.588e-05,2]
[344524007,1733535511912,656.4,9.862e-05,2]
[344524008,1733535512148,489.54,9.496e-05,2]
[344524009,1733535514930,346.26553235,7.681e-05,2]
[344524010,1733535515048,250.0,9.496e-05,2]
[344524011,1733535515198,346.26553235,7.683e-05,2]
[344524012,1733535515476,346.26553235,7.698e-05,2]
[344524013,1733535515753,346.26553235,7.685e-05,2]
[344524014,1733535516036,346.26553235,7.691e-05,2]
[344524015,1733535516374,346.26553235,7.679e-05,2]
[344524016,1733535522803,1516.55,9.588e-05,2]
[344524017,1733535523072,1516.55,9.862e-05,2]
[344524018,1733535528192,1267.06,8.219e-05,2]
[344524019,1733535528461,1267.06,8.493e-05,2]
[344524020,1733535529079,1267.06,8.767e-05,2]
[344524021,1733535529187,1267.06,9.041e-05,2]
[344524022,1733535529330,1267.06,9.315e-05,2]
[344524023,1733535529647,1267.06,9.589e-05,2]
[344524024,1733535529950,1267.06,9.863e-05,2]
[344524025,1733535535745,1388.96,9.588e-05,2]
[344524026,1733535536021,1388.96,9.862e-05,2]
[344524027,1733535537777,1414.49,8.219e-05,2]
[344524028,1733535537842,1414.49,8.493e-05,2]
[344524029,1733535537984,1414.49,8.767e-05,2]
[344524030,1733535538140,7796.63,9.522e-05,2]
[344524031,1733535538298,1414.49,9.041e-05,2]
[344524032,1733535538556,1414.49,9.315e-05,2]
[344524033,1733535538831,1414.49,9.589e-05,2]
[344524034,1733535539550,1414.49,9.863e-05,2]
[344524035,1733535545547,500.0,9.588e-05,2]
[344524036,1733535545888,500.0,9.862e-05,2]
[344524037,1733535551744,5012.56,8.219e-05,2]
[344524038,1733535552225,1616.63,8.219e-05,2]
[344524039,1733535552495,1616.63,8.493e-05,2]
[344524040,1733535552739,1616.63,8.767e-05,2]
[344524041,1733535553017,1616.63,9.041e-05,2]
[344524042,1733535553328,1616.63,9.315e-05,2]
[344524043,1733535553591,1616.63,9.589e-05,2]
[344524044,1733535553894,1616.63,9.863e-05,2]
[344524045,1733535553971,2658.51,9.588e-05,2]
[344524046,1733535554025,1758.89,9.364e-05,2]
[344524047,1733535554196,2658.51,9.862e-05,2]
[344524048,1733535554626,150.0,9.589e-05,2]
[344524049,1733535554718,5558.23059645,7.699e-05,2]
[344524050,1733535555111,5558.23059645,7.682e-05,2]
[344524051,1733535555375,5558.23059645,7.698e-05,2]
[344524052,1733535555725,5558.23059645,7.691e-05,2]
[344524053,1733535555998,5558.23059645,7.682e-05,2]
[344524054,1733535556359,150.0,9.589e-05,2]
[344524055,1733535556512,5558.23059645,7.695e-05,2]
[344524056,1733535558106,150.0,9.589e-05,2]
[344524057,1733535560680,150.0,9.589e-05,2]
[344524058,1733535564430,160.91,9.323e-05,2]
[344524059,1733535564643,160.91,9.668e-05,2]
[344524060,1733535565235,122037.29037987,9.589e-05,2]
[344524061,1733535567137,12245.37486207,9.589e-05,2]
[344524062,1733535567191,1194.24,9.588e-05,2]
[344524063,1733535567281,1194.24,9.862e-05,2]
[344524064,1733535568350,645.1186681,8.219e-05,2]
[344524065,1733535570539,2472.9,8.219e-05,2]
[344524066,1733535571058,412.30137837,7.692e-05,2]
[344524067,1733535571175,8084.26,9.225e-05,2]
[344524068,1733535571225,2472.9,8.493e-05,2]
[344524069,1733535571276,412.30137837,7.687e-05,2]
[344524070,1733535571382,412.30137837,7.694e-05,2]
[344524071,1733535571437,2472.9,8.767e-05,2]
[344524072,1733535571559,412.30137837,7.687e-05,2]
[344524073,1733535571620,2472.9,9.041e-05,2]
[344524074,1733535571743,412.30137837,7.678e-05,2]
[344524075,1733535571859,2472.9,9.315e-05,2]
[344524076,1733535572012,412.30137837,7.679e-05,2]
[344524077,1733535572121,2472.9,9.589e-05,2]
[344524078,1733535572462,2472.9,9.863e-05,2]
[344524079,1733535576135,10867.56,9.588e-05,2]
[344524080,1733535576435,10867.56,9.862e-05,2]
[344524081,1733535581824,364.14,9.267e-05,2]
[344524082,1733535582660,1973.18,8.219e-05,2]
[344524083,1733535582921,1973.18,8.493e-05,2]
[344524084,1733535583175,1973.18,8.767e-05,2]
[344524085,1733535583439,1973.18,9.041e-05,2]
[344524086,1733535583970,1973.18,9.315e-05,2]
[344524087,1733535584558,1973.18,9.589e-05,2]
[344524088,1733535584966,1973.18,9.863e-05,2]
[344524089,1733535588461,2773.0,9.588e-05,2]
[344524090,1733535589047,2773.0,9.862e-05,2]
[344524091,1733535589168,422.78193992,7.686e-05,2]
[344524092,1733535589435,422.78193992,7.69e-05,2]
[344524093,1733535589700,422.78193992,7.687e-05,2]
[344524094,1733535590007,422.78193992,7.691e-05,2]
[344524095,1733535590314,422.78193992,7.683e-05,2]
[344524096,1733535590606,422.78193992,7.689e-05,2]
[344524097,1733535592106,1808.78,8.219e-05,2]
[344524098,1733535592196,1808.78,8.493e-05,2]
[344524099,1733535592278,1808.78,8.767e-05,2]
[344524100,1733535592528,1808.78,9.041e-05,2]
[344524101,1733535592793,1808.78,9.315e-05,2]
[344524102,1733535593074,1808.78,9.589e-05,2]
[344524103,1733535593333,1808.78,9.863e-05,2]
[344524104,1733535597976,714.19,9.588e-05,2]
[344524105,1733535598326,714.19,9.862e-05,2]
[344524106,1733535601362,500.0,8.219e-05,2]
[344524107,1733535601644,533.84250752,8.493e-05,2]
[344524108,1733535603019,6622.28712431,9.407e-05,2]
[344524109,1733535603298,150.0,9.315e-05,2]
[344524110,1733535603435,5000.0,9.407e-05,2]
[344524111,1733535603502,150.0,9.315e-05,2]
[344524112,1733535603720,5000.0,9.407e-05,2]
[344524113,1733535603944,150.0,9.315e-05,2]
[344524114,1733535604009,5000.0,9.407e-05,2]
[344524115,1733535604161,150.0,9.315e-05,2]
[344524116,1733535604296,5000.0,9.407e-05,2]
[344524117,1733535604362,150.0,9.315e-05,2]
[344524118,1733535604981,150.0,9.315e-05,2]
[344524119,1733535605119,150.0,9.315e-05,2]
[344524120,1733535605183,989.48,9.216e-05,2]
[344524121,1733535605259,150.0,9.315e-05,2]
[344524122,1733535605331,989.48,9.219e-05,2]
[344524123,1733535605400,150.0,9.315e-05,2]
[344524124,1733535605472,989.48,9.221e-05,2]
[344524125,1733535605536,150.0,9.315e-05,2]
[344524126,1733535605612,989.48,9.224e-05,2]
[344524127,1733535605680,150.0,9.315e-05,2]
[344524128,1733535605861,150.0,9.315e-05,2]
[344524129,1733535605981,989.48,9.226e-05,2]
[344524130,1733535606069,150.0,9.315e-05,2]
[344524131,1733535606188,989.48,9.229e-05,2]
[344524132,1733535606268,150.0,9.315e-05,2]
[344524133,1733535606463,150.0,9.315e-05,2]
[344524134,1733535606513,989.48,9.231e-05,2]
[344524135,1733535606684,989.48,9.234e-05,2]
[344524136,1733535606740,150.0,9.315e-05,2]
[344524137,1733535606943,150.0,9.315e-05,2]
[344524138,1733535607002,989.48,9.236e-05,2]
[344524139,1733535607112,150.0,9.315e-05,2]
[344524140,1733535607205,989.48,9.238e-05,2]
[344524141,1733535607331,150.0,9.315e-05,2]
[344524142,1733535607395,989.48,9.241e-05,2]
[344524143,1733535607584,150.0,9.315e-05,2]
[344524144,1733535607736,989.48,9.243e-05,2]
[344524145,1733535607794,150.0,9.315e-05,2]
[344524146,1733535608034,989.48,9.246e-05,2]
[344524147,1733535608102,171.84248155,9.315e-05,2]
[344524148,1733535608363,989.48,9.248e-05,2]
[344524149,1733535608585,989.48,9.251e-05,2]
[344524150,1733535608847,989.48,9.253e-05,2]
[344524151,1733535609052,989.48,9.255e-05,2]
[344524152,1733535609292,989.48,9.258e-05,2]
[344524153,1733535609494,989.48,9.26e-05,2]
[344524154,1733535609912,989.48,9.263e-05,2]
[344524155,1733535611827,13716.0,9.055e-05,2]
[344524156,1733535611944,4168.67294734,7.691e-05,2]
[344524157,1733535612203,4168.67294734,7.687e-05,2]
[344524158,1733535612476,4168.67294734,7.678e-05,2]
[344524159,1733535613630,4168.67294734,7.682e-05,2]
[344524160,1733535613684,2619.25,9.588e-05,2]
[344524161,1733535613778,4168.67294734,7.678e-05,2]
[344524162,1733535613852,2619.25,9.862e-05,2]
[344524163,1733535613948,4168.67294734,7.699e-05,2]
[344524164,1733535614021,171.15,9.233e-05,2]
[344524165,1733535616475,1259.337,9.055e-05,2]
[344524166,1733535620323,309.22603378,7.684e-05,2]
[344524167,1733535620612,309.22603378,7.689e-05,2]
[344524168,1733535620900,309.22603378,7.686e-05,2]
[344524169,1733535621154,309.22603378,7.696e-05,2]
[344524170,1733535621229,259.69914926,7.691e-05,2]
[344524171,1733535621691,309.22603378,7.686e-05,2]
[344524172,1733535621751,259.69914926,7.697e-05,2]
[344524173,1733535621827,309.22603378,7.695e-05,2]
[344524174,1733535621959,259.69914926,7.695e-05,2]
[344524175,1733535622248,259.69914926,7.699e-05,2]
[344524176,1733535622341,5964.0,9.055e-05,2]
[344524177,1733535622529,259.69914926,7.684e-05,2]
[344524178,1733535622893,259.69914926,7.692e-05,2]
[344524179,1733535628352,317.08645494,7.678e-05,2]
[344524180,1733535628486,217.579,9.055e-05,2]
[344524181,1733535628604,317.08645494,7.698e-05,2]
[344524182,1733535628873,317.08645494,7.695e-05,2]
[344524183,1733535629135,317.08645494,7.694e-05,2]
[344524184,1733535629411,317.08645494,7.695e-05,2]
[344524185,1733535630141,2258.44,9.208e-05,2]
[344524186,1733535630231,317.08645494,7.692e-05,2]
[344524187,1733535630289,3304.18,9.588e-05,2]
[344524188,1733535630466,3304.18,9.862e-05,2]
[344524189,1733535631468,1100.793,9.055e-05,2]
[344524190,1733535638554,417.23983538,8.219e-05,2]
[344524191,1733535639531,11488.43,9.588e-05,2]
[344524192,1733535639742,11488.43,9.862e-05,2]
[344524193,1733535640618,200.0,7.694e-05,2]
[344524194,1733535640889,200.0,7.685e-05,2]
[344524195,1733535641175,200.0,7.679e-05,2]
[344524196,1733535641636,200.0,7.678e-05,2]
[344524197,1733535641939,200.0,7.696e-05,2]
[344524198,1733535642202,200.0,7.688e-05,2]
[344524199,1733535648434,1556.36,9.588e-05,2]
[344524200,1733535648720,1556.36,9.862e-05,2]
[344524201,1733535654604,765.64,8.219e-05,2]
[344524202,1733535654905,765.64,8.493e-05,2]
[344524203,1733535655215,765.64,8.767e-05,2]
[344524204,1733535656048,765.64,9.041e-05,2]
[344524205,1733535656152,765.64,9.315e-05,2]
[344524206,1733535656288,765.64,9.589e-05,2]
[344524207,1733535656392,765.64,9.863e-05,2]
[344524208,1733535657716,3767.12,9.588e-05,2]
[344524209,1733535658031,3767.12,9.862e-05,2]
[344524210,1733535660321,1852.42,9.139e-05,2]
[344524211,1733535667549,432.2725055,9.936e-05,2]
[344524212,1733535667753,3126.5047105,7.694e-05,2]
[344524213,1733535667879,3126.5047105,7.686e-05,2]
[344524214,1733535668075,3126.5047105,7.686e-05,2]
[344524215,1733535668168,3126.5047105,7.691e-05,2]
[344524216,1733535668473,3126.5047105,7.68e-05,2]
[344524217,1733535668768,3126.5047105,7.682e-05,2]
[344524218,1733535669309,1019.32,9.588e-05,2]
[344524219,1733535669653,1019.32,9.862e-05,2]
[344524220,1733535669729,500.0,8.219e-05,2]
[344524221,1733535669924,175.99923253,8.493e-05,2]
[344524222,1733535673950,1450.65,8.219e-05,2]
[344524223,1733535674191,1450.65,8.493e-05,2]
[344524224,1733535674448,1450.65,8.767e-05,2]
[344524225,1733535674782,1450.65,9.041e-05,2]
[344524226,1733535674996,1450.65,9.315e-05,2]
[344524227,1733535675271,1450.65,9.589e-05,2]
[344524228,1733535675547,1450.65,9.863e-05,2]
[344524229,1733535675959,231.91952534,7.679e-05,2]
[344524230,1733535676221,231.91952534,7.691e-05,2]
[344524231,1733535676497,231.91952534,7.691e-05,2]
[344524232,1733535676772,231.91952534,7.697e-05,2]
[344524233,1733535677042,231.91952534,7.679e-05,2]
[344524234,1733535677912,231.91952534,7.684e-05,2]
[344524235,1733535678902,1348.53,9.588e-05,2]
[344524236,1733535679160,1348.53,9.862e-05,2]
[344524237,1733535683592,553.06,9.186e-05,2]
[344524238,1733535683897,237.8148412,7.683e-05,2]
[344524239,1733535684214,237.8148412,7.681e-05,2]
[344524240,1733535684482,237.8148412,7.698e-05,2]
[344524241,1733535684759,237.8148412,7.677e-05,2]
[344524242,1733535685030,237.8148412,7.692e-05,2]
[344524243,1733535685305,237.8148412,7.679e-05,2]
[344524244,1733535687530,1036.41,8.219e-05,2]
[344524245,1733535687861,1036.41,8.493e-05,2]
[344524246,1733535688449,1036.41,8.767e-05,2]
[344524247,1733535688526,1036.41,9.041e-05,2]
[344524248,1733535688649,1036.41,9.315e-05,2]
[344524249,1733535688964,1036.41,9.589e-05,2]
[344524250,1733535689249,1036.41,9.863e-05,2]
[344524251,1733535689635,1724.23,9.588e-05,2]
[344524252,1733535689900,1724.23,9.862e-05,2]
[344524253,1733535694789,200.0,7.678e-05,2]
[344524254,1733535695059,200.0,7.699e-05,2]
[344524255,1733535695309,200.0,7.681e-05,2]
[344524256,1733535695582,200.0,7.689e-05,2]
[344524257,1733535695861,200.0,7.695e-05,2]
[344524258,1733535696133,200.0,7.685e-05,2]
[344524259,1733535699991,6365.04,9.588e-05,2]
[344524260,1733535700254,6365.04,9.862e-05,2]
[344524261,1733535704472,1048.28,8.219e-05,2]
[344524262,1733535704760,1048.28,8.493e-05,2]
[344524263,1733535705027,1048.28,8.767e-05,2]
[344524264,1733535705330,1048.28,9.041e-05,2]
[344524265,1733535705611,1048.28,9.315e-05,2]
[344524266,1733535705860,1048.28,9.589e-05,2]
[344524267,1733535706115,1048.28,9.863e-05,2]
[344524268,1733535706878,23900.0,9.1e-05,2]
[344524269,1733535716564,1201.84,8.219e-05,2]
[344524270,1733535716847,1201.84,8.493e-05,2]
[344524271,1733535717127,1201.84,8.767e-05,2]
[344524272,1733535717441,1201.84,9.041e-05,2]
[344524273,1733535717721,1201.84,9.315e-05,2]
[344524274,1733535717994,1201.84,9.589e-05,2]
[344524275,1733535718274,1201.84,9.863e-05,2]
[344524276,1733535723512,713.37,9.588e-05,2]
[344524277,1733535723771,713.37,9.862e-05,2]
[344524279,1733535724787,284.38951938,9.813e-05,2]
[344524280,1733535731630,323.7469175,0.00016658,30]
[344524281,1733535731795,2344.87853288,7.686e-05,2]
[344524282,1733535731918,2344.87853288,7.694e-05,2]
[344524283,1733535732044,2344.87853288,7.684e-05,2]
[344524284,1733535732302,2344.87853288,7.693e-05,2]
[344524285,1733535732660,2344.87853288,7.692e-05,2]
[344524286,1733535733037,2344.87853288,7.695e-05,2]
[344524287,1733535736195,1735.17,9.588e-05,2]
[344524288,1733535736457,1735.17,9.862e-05,2]
[344524289,1733535738304,500.0,8.219e-05,2]
[344524290,1733535738570,500.0,8.493e-05,2]
[344524291,1733535738831,500.0,8.767e-05,2]
[344524292,1733535739136,159.3360976,9.041e-05,2]
[344524293,1733535739617,150.0,9.589e-05,2]
[344524294,1733535739770,200.0,9.089e-05,2]
[344524295,1733535739920,200.0,7.698e-05,2]
[344524296,1733535740235,200.0,7.689e-05,2]
[344524297,1733535740496,200.0,7.687e-05,2]
[344524298,1733535740790,200.0,7.685e-05,2]
[344524299,1733535741108,200.0,7.691e-05,2]
[344524300,1733535741390,200.0,7.699e-05,2]
[344524301,1733535741442,150.0,9.589e-05,2]
[344524302,1733535743165,500.0,8.219e-05,2]
[344524303,1733535743438,500.0,8.493e-05,2]
[344524304,1733535743721,500.0,8.767e-05,2]
[344524305,1733535744044,511.22871555,9.041e-05,2]
[344524306,1733535747982,200.0,7.69e-05,2]
[344524307,1733535748308,200.0,7.678e-05,2]
[344524308,1733535748526,200.0,7.695e-05,2]
[344524309,1733535748580,593.82,8.219e-05,2]
[344524310,1733535748846,593.82,8.493e-05,2]
[344524311,1733535748898,200.0,7.687e-05,2]
[344524312,1733535749426,200.0,7.698e-05,2]
[344524313,1733535749477,593.82,8.767e-05,2]
[344524314,1733535749606,200.0,7.696e-05,2]
[344524315,1733535749659,593.82,9.041e-05,2]
[344524316,1733535749789,593.82,9.315e-05,2]
[344524317,1733535749928,593.82,9.589e-05,2]
[344524318,1733535750197,593.82,9.863e-05,2]
[344524319,1733535754250,638.59,9.588e-05,2]
[344524320,1733535754521,638.59,9.862e-05,2]
[344524321,1733535757011,500.0,8.219e-05,2]
[344524322,1733535757309,500.0,8.493e-05,2]
[344524323,1733535757529,500.0,8.767e-05,2]
[344524324,1733535757792,500.0,9.041e-05,2]
[344524325,1733535758091,500.0,9.315e-05,2]
[344524326,1733535758355,500.0,9.589e-05,2]
[344524327,1733535758954,500.0,9.863e-05,2]
[344524328,1733535759087,200.0,7.693e-05,2]
[344524329,1733535759353,200.0,7.689e-05,2]
[344524330,1733535759614,200.0,7.699e-05,2]
[344524331,1733535759976,200.0,7.683e-05,2]
[344524332,1733535760315,200.0,7.684e-05,2]
[344524333,1733535760570,200.0,7.686e-05,2]
[344524334,1733535760851,3735.28,9.086e-05,2]